Workbook

Sheet MSU
B1: Juha-Matti Matilainen | E1: 24.2.1981 Vimpeli
B2: SUPERPESIS | E2: Runkosarja | I2: Kärkilyönnit (KL), pesänvälit | P2: Runkosarja TOP-30 | U2: Ylempi loppusarja | AB2: Ylempi loppusarja TOP-10 | AG2: Play off, voitot, voittoprosentti | AL2: Arvo-ottelut | AO2: Mitalit
B3: Vuosi | C3: Sija | D3: Seura | E3: OTT | F3: KUN | G3: LÖI | H3: TOI | I3: KL | J3: 0 > 1 | K3: 1 > 2 | L3: 2 > 3 | M3: 3 > k | N3: KL-% | P3: LÖI | Q3: TOI | R3: L+T | S3: KL | U3: OTT | V3: KUN | W3: LÖI | X3: TOI | Y3: KL | Z3: KL-% | AB3: LÖI | AC3: TOI | AD3: L+T | AE3: KL | AG3: Puolivälierät | AH3: Välierät | AI3: Pronssi | AJ3: Finaalit | AL3: IL | AM3: LL | AN3: hSM | AO3: K | AP3: H | AQ3: P
B4: 2000 | C4: 5. | D4: ViVe | F4: ykköspesis
B5: 2001 | C5: 4. | D5: ViVe | F5: ykköspesis
B6: 2002 | C6: 4. | D6: ViVe | F6: ykköspesis
B7: 2003 | C7: 2. | D7: ViVe | F7: ykköspesis
B8: 2004 | C8: 9. | D8: ViVe | E8: 28 | F8: 1 | G8: 4 | H8: 7 | I8: 35 | J8: 8 | K8: 13 | L8: 9 | M8: 5 | N8: 43.8 %
B9: 2005 | C9: 10. | D9: ViVe | E9: 12 | F9: 0 | G9: 0 | H9: 9 | I9: 33 | J9: 7 | K9: 17 | L9: 9 | M9: 0 | N9: 48.5 %
B10: 2006 | C10: 10. | D10: ViVe | E10: 27 | F10: 0 | G10: 2 | H10: 22 | I10: 98 | J10: 68 | K10: 24 | L10: 4 | M10: 2 | N10: 58.0 % | Q10: 25.
B11: 2007 | C11: 5. | D11: ViVe | E11: 26 | F11: 0 | G11: 4 | H11: 17 | I11: 70 | J11: 62 | K11: 2 | L11: 2 | M11: 4 | N11: 58.8 % | U11: 9 | V11: 0 | W11: 2 | X11: 2 | Y11: 7 | Z11: 35.0 % | AG11: Jatkosarja 5.
B12: 2008 | C12: 10. | D12: SMJ | E12: 23 | F12: 1 | G12: 0 | H12: 23 | I12: 96 | J12: 91 | K12: 3 | L12: 1 | M12: 1 | N12: 60.8 % | Q12: 19.
B13: 2009 | C13: 8. | D13: AA | F13: ykköspesis
B14: 2009 | C14: 3. | D14: ViVe | E14: 15 | F14: 0 | G14: 0 | H14: 5 | I14: 25 | J14: 8 | K14: 13 | L14: 4 | M14: 0 | N14: 67.6 % | U14: 11 | V14: 0 | W14: 1 | X14: 3 | Y14: 14 | Z14: 53.9 % | AG14: 4-2 KoU | AH14: 0-3 KPL | AI14: 2-0 PattU | AQ14: 1
B15: 2010 | C15: 2. | D15: AA | F15: ykköspesis
B16: 2011 | C16: 1. | D16: AA | F16: ykköspesis
B17: 2012 | C17: 12. | D17: AA | E17: 25 | F17: 1 | G17: 1 | H17: 17 | I17: 119 | J17: 8 | K17: 80 | L17: 29 | M17: 2 | N17: 61.0 % | S17: 23.
B18: 2013 | C18: 8. | D18: JymyJussit 2 | F18: ykköspesis
B19: 2013 | C19: 7. | D19: JymyJussit | E19: 25 | F19: 0 | G19: 2 | H19: 18 | I19: 79 | J19: 23 | K19: 48 | L19: 6 | M19: 2 | N19: 50.6 % | U19: 3 | V19: 0 | W19: 0 | X19: 2 | Y19: 4 | Z19: 21.1 % | AG19: 0-3 ViVe
B20: 2014 | C20: 10. | D20: AA | E20: 30 | F20: 0 | G20: 0 | H20: 24 | I20: 107 | J20: 22 | K20: 69 | L20: 16 | M20: 0 | N20: 51.7 %
B21: Yhteensä | E21: 211 | F21: 3 | G21: 13 | H21: 142 | I21: 662 | J21: 297 | K21: 269 | L21: 80 | M21: 16 | N21: 55.7 % | P21: 0-0-0 | Q21: 0-0-0 | R21: 0-0-0 | S21: 0-0-0 | U21: 23 | V21: 0 | W21: 3 | X21: 7 | Y21: 25 | Z21: 38.5 % | AB21: 0-0-0 | AC21: 0-0-0 | AD21: 0-0-0 | AE21: 0-0-0 | AG21: 1/3 | AH21: 0/1 | AI21: 1/1 | AJ21: 0/0 | AL21: 0 | AM21: 0 | AN21: 0 | AO21: 0 | AP21: 0 | AQ21: 1
AG22: 33.3 % | AH22: 0.0 % | AI22: 100.0 % | AJ22: 0.0 %
B23: Pesispörssi | D23: 458.7
B25: URA SUPERISSA | E25: OTT | F25: KUN | G25: LÖI | H25: TOI | I25: KL | K25: ka/L | L25: ka/T | M25: ka/KL | N25: KL-% | P25: ENSIMMÄISET RUNKOSARJASSA | AG25: ENSIMMÄISET PUDOTUSPELEISSÄ | AL25: YLEISÖ
B26: Runkosarja | E26: 211 | F26: 3 | G26: 13 | H26: 142 | I26: 662 | K26: 0.08 | L26: 0.67 | M26: 3.14 | N26: 55.7 % | P26: Ottelu | R26: 15.08. 2001 AA - ViVe 2-0 (7-1, 7-1) | Z26: 1. ottelu | AD26: 20 v 5 kk 22 pv | AG26: Ottelu | AH26: 1. 07.08. 2007 ViVe - KiPa 2-1 s | AL26: 2495 | AN26: 26 v 5 kk 14 pv
B27: Ylempi loppusarja | E27: 23 | F27: 0 | G27: 3 | H27: 7 | I27: 25 | K27: 0.13 | L27: 0.30 | M27: 1.09 | N27: 38.5 % | P27: Lyöty | R27: 09.09. 2001 ViVe - HP 2-1 (2-3, 3-2, 1-0) | Z27: 7. ottelu | AD27: 20 v 6 kk 16 pv | AG27: Lyöty | AH27: 9. 23.08. 2007 ViVe - PattU 2-0 | AL27: 2318 | AN27: 26 v 5 kk 30 pv
B28: Alempi loppusarja | E28: 50 | F28: 0 | G28: 10 | H28: 36 | I28: 160 | K28: 0.20 | L28: 0.72 | M28: 3.20 | N28: 62.0 % | P28: Tuotu | R28: 22.08. 2001 LP - ViVe 2-1 (6-5, 2-4, 4-1) | Z28: 3. ottelu | AD28: 20 v 5 kk 29 pv | AG28: Tuotu | AH28: 8. 21.08. 2007 PuPe - ViVe 0-2 | AL28: 1372 | AN28: 26 v 5 kk 28 pv
B29: KAIKKI | E29: 284 | F29: 3 | G29: 26 | H29: 185 | I29: 847 | K29: 0.10 | L29: 0.65 | M29: 2.98 | N29: 55.5 % | P29: Kunnari | R29: 11.07. 2004 Tahko - ViVe 2-0 (7-4, 4-0) | Z29: 30. ottelu | AD29: 23 v 4 kk 17 pv | AG29: Kunnari
B31: Seurat | D31: ViVe = Vimpelin Veto (1934), kasvattajaseura | L31: SMJ = Seinäjoen Maila-Jussit (1932) | U31: AA = Alajärven Ankkurit (1944) | AC31: JymyJussit = Seinäjoen JymyJussit (2012)
B33: RUNKOSARJA, KA / OTT | F33: IKÄ | G33: OTT | H33: LÖI | I33: TOI | J33: TEHO | K33: KL | M33: SIJOITUS | P33: OTT | Q33: LÖI | R33: TOI | S33: TEHO | U33: KL | W33: RUNKOSARJA, TASASATASET, ka. / peli
B34: 2004 | C34: 9. | D34: ViVe | F34: 23 | G34: 28 | H34: =PRODUCT((F8+G8)/E8) -> 0.18 | I34: =PRODUCT(H8/E8) -> 0.25 | J34: =PRODUCT(F8+G8+H8)/E8 -> 0.43 | K34: =PRODUCT(I8/E8) -> 1.25 | M34: 1945 - 2004 | O34: 20 | P34: 1101. | Q34: 1246. | R34: 1213. | S34: 1268. | U34: 800. | W34: Ottelutilasto
B35: 2005 | C35: 10. | D35: ViVe | F35: 24 | G35: 12 | H35: =PRODUCT((F9+G9)/E9) -> 0.00 | I35: =PRODUCT(H9/E9) -> 0.75 | J35: =PRODUCT(F9+G9+H9)/E9 -> 0.75 | K35: =PRODUCT(I9/E9) -> 2.75 | M35: 1945 - 2005 | O35: 20 | P35: 1002. | Q35: 1260. | R35: 986. | S35: 1128. | U35: 701. | W35: 200 | Y35: 288. 15.07. 2014 Tahko - AA 2-0 | AG35: 33 v 4 kk 21 pv
B36: 2006 | C36: 10. | D36: ViVe | F36: 25 | G36: 27 | H36: 0.07 | I36: 0.81 | J36: 0.89 | K36: 3.63 | M36: 1945 - 2006 | O36: 21 | P36: 788. | Q36: 1191. | R36: 685. | S36: 880. | U36: 519.
B37: 2007 | C37: 5. | D37: ViVe | F37: 26 | G37: 26 | H37: 0.15 | I37: 0.65 | J37: 0.81 | K37: 2.69 | M37: 1945 - 2007 | P37: 614. | Q37: 1070. | R37: 559. | S37: 762. | U37: 454.
B38: 2008 | C38: 10. | D38: SMJ | F38: 27 | G38: 23 | H38: 0.04 | I38: 1.00 | J38: 1.04 | K38: 4.17 | M38: 1945 - 2008 | P38: 516. | Q38: 1046. | R38: 421. | S38: 642. | U38: 369.
B39: 2009 | C39: 3. | D39: ViVe | F39: 28 | G39: 15 | H39: =PRODUCT((F14+G14)/E14) -> 0.00 | I39: =PRODUCT(H14/E14) -> 0.33 | J39: =PRODUCT(F14+G14+H14)/E14 -> 0.33 | K39: =PRODUCT(I14/E14) -> 1.67 | M39: 1945 - 2009 | P39: 472. | Q39: 1062. | R39: 409. | S39: 624. | U39: 354.
B40: 2010 | F40: 29 | M40: 1945 - 2010 | P40: 480. | Q40: 1075. | R40: 413. | S40: 634. | U40: 366.
B41: 2011 | F41: 30 | M41: 1945 - 2011 | P41: 493. | Q41: 1086. | R41: 420. | S41: 645. | U41: 371.
B42: 2012 | C42: 12. | D42: AA | F42: 31 | G42: 25 | H42: =PRODUCT((F17+G17)/E17) -> 0.08 | I42: =PRODUCT(H17/E17) -> 0.68 | J42: =PRODUCT(F17+G17+H17)/E17 -> 0.76 | K42: =PRODUCT(I17/E17) -> 4.76 | M42: 1945 - 2012 | P42: 400. | Q42: 1040. | R42: 352. | S42: 570. | U42: 314.
B43: 2013 | C43: 7. | D43: JymyJussit | F43: 32 | G43: 25 | H43: =PRODUCT((F19+G19)/E19) -> 0.08 | I43: =PRODUCT(H19/E19) -> 0.72 | J43: =PRODUCT(F19+G19+H19)/E19 -> 0.80 | K43: =PRODUCT(I19/E19) -> 3.16 | M43: 1945 - 2013 | P43: 326. | Q43: 1015. | R43: 304. | S43: 515. | U43: 275.
B44: 2014 | C44: 10. | D44: AA | F44: 33 | G44: 30 | H44: =PRODUCT((F20+G20)/E20) -> 0.00 | I44: =PRODUCT(H20/E20) -> 0.80 | J44: =PRODUCT(F20+G20+H20)/E20 -> 0.80 | K44: =PRODUCT(I20/E20) -> 3.57 | M44: 1945 - 2014 | P44: 257. | Q44: 1028. | R44: 245. | S44: 455. | U44: 237.
B47: PLAY OFF, KA / OTT | F47: IKÄ | G47: OTT | H47: LÖI | I47: TOI | J47: TEHO | K47: KL | M47: SIJOITUS | P47: OTT | Q47: LÖI | R47: TOI | S47: TEHO | U47: KL | W47: PLAY OFF, TASASATASET, ka. / peli
B48: 2007 | C48: 5. | D48: ViVe | F48: 26 | G48: 9 | H48: =PRODUCT((V11+W11)/U11) -> 0.22 | I48: =PRODUCT(X11/U11) -> 0.22 | J48: =PRODUCT(V11+W11+X11)/U11 -> 0.44 | K48: =PRODUCT(Y11/U11) -> 0.78 | M48: 1979 - 2007 | O48: 20 | P48: 364. | Q48: 356. | R48: 362. | S48: 385. | U48: 465.
B49: 2008 | C49: 10. | D49: SMJ | F49: 27 | M49: 1979 - 2008 | O49: 20 | P49: 386. | Q49: 373. | R49: 373. | S49: 402. | U49: 480.
B50: 2009 | C50: 3. | D50: ViVe | F50: 28 | G50: 11 | H50: =PRODUCT((V14+W14)/U14) -> 0.09 | I50: =PRODUCT(X14/U14) -> 0.27 | J50: =PRODUCT(V14+W14+X14)/U14 -> 0.36 | K50: =PRODUCT(Y14/U14) -> 1.27 | M50: 1979 - 2009 | O50: 21 | P50: 266. | Q50: 347. | R50: 293. | S50: 341. | U50: 397.
B51: 2010 | F51: 29 | M51: 1979 - 2010 | P51: 271. | Q51: 353. | R51: 295. | S51: 344. | U51: 402.
B52: 2011 | F52: 30 | M52: 1979 - 2011 | P52: 276. | Q52: 361. | R52: 310. | S52: 358. | U52: 415.
B53: 2012 | C53: 12. | D53: AA | F53: 31 | M53: 1979 - 2012 | P53: 282. | Q53: 367. | R53: 321. | S53: 363. | U53: 424.
B54: 2013 | C54: 7. | D54: JymyJussit | F54: 32 | G54: 3 | H54: =PRODUCT((V19+W19)/U19) -> 0.00 | I54: =PRODUCT(X19/U19) -> 0.67 | J54: =PRODUCT(V19+W19+X19)/U19 -> 0.67 | K54: =PRODUCT(Y19/U19) -> 1.33 | M54: 1979 - 2013 | P54: 264. | Q54: 372. | R54: 281. | S54: 339. | U54: 404.
B55: 2014 | C55: 10. | D55: AA | F55: 33 | M55: 1979 - 2014 | P55: 277. | Q55: 376. | R55: 289. | S55: 348. | U55: 413.

Sheet MYP
B1: Juha-Matti Matilainen | F1: 24.2.1981 Vimpeli
B2: YKKÖSPESIS | E2: Runkosarja | L2: Runkosarja TOP-10 | Q2: Jatkosarjat | X2: SUOMENSARJA | AA2: Runkosarja | AH2: Runkosarja TOP-10 | AM2: Jatkosarjat
B3: Vuosi | C3: Sija | D3: Seura | E3: OTT | F3: KUN | G3: LÖI | H3: TOI | I3: KL | J3: KL-% | L3: LÖI | M3: TOI | N3: L+T | O3: KL | Q3: OTT | R3: KUN | S3: LÖI | T3: TOI | U3: KL | V3: KL-% | X3: Vuosi | Y3: Sija | Z3: Seura | AA3: OTT | AB3: KUN | AC3: LÖI | AD3: TOI | AE3: KL | AF3: KL-% | AH3: LÖI | AI3: TOI | AJ3: L+T | AK3: KL | AM3: OTT | AN3: KUN | AO3: LÖI | AP3: TOI | AQ3: KL | AR3: KL-%
B4: 2000 | C4: 5. | D4: ViVe | E4: 22 | F4: 0 | G4: 3 | H4: 13 | I4: 74 | J4: 56.5 % | K4: 131
B5: 2001 | C5: 4. | D5: ViVe | E5: 25 | F5: 1 | G5: 6 | H5: 13 | I5: 83 | J5: 59.3 % | K5: 140
B6: 2002 | C6: 4. | D6: ViVe | E6: 22 | F6: 1 | G6: 6 | H6: 13 | I6: 74 | J6: 56.5 % | K6: 131 | Q6: 2 | R6: 1 | S6: 2 | T6: 2 | U6: 6 | V6: 54.5 % | W6: 11
B7: 2003 | C7: 2. | D7: ViVe | E7: 20 | F7: 0 | G7: 5 | H7: 15 | I7: 65 | J7: 63.7 % | K7: 102
B9: 2009 | C9: 8. | D9: AA | E9: 6 | F9: 0 | G9: 0 | H9: 11 | I9: 34 | J9: 69.4 % | K9: 49
B10: 2010 | C10: 2. | D10: AA | E10: 22 | F10: 1 | G10: 13 | H10: 40 | I10: 120 | J10: 69.0 % | K10: 174 | M10: 5. | N10: 9. | O10: 7. | Q10: 5 | R10: 0 | S10: 0 | T10: 9 | U10: 21 | V10: 60.0 % | W10: 35
B11: 2011 | C11: 1. | D11: AA | E11: 22 | F11: 1 | G11: 9 | H11: 27 | I11: 117 | J11: 71.8 % | K11: 163 | O11: 8. | Q11: 7 | R11: 0 | S11: 2 | T11: 9 | U11: 42 | V11: 64.0 % | W11: =PRODUCT(U11/V11) -> 65.625
B13: 2013 | C13: 8. | D13: JymyJussit 2 | E13: 1 | F13: 0 | G13: 0 | H13: 0 | I13: 2 | J13: 20.0 % | K13: 5
B14: YHTEENSÄ | E14: =SUM(E4:E13) -> 140 | F14: =SUM(F4:F13) -> 4 | G14: =SUM(G4:G13) -> 42 | H14: =SUM(H4:H13) -> 132 | I14: =SUM(I4:I13) -> 569 | J14: =PRODUCT(I14/K14) -> 63.6 % | K14: =SUM(K4:K13) -> 895 | Q14: =SUM(Q4:Q13) -> 14 | R14: =SUM(R4:R13) -> 1 | S14: =SUM(S4:S13) -> 4 | T14: =SUM(T4:T13) -> 20 | U14: =SUM(U4:U13) -> 69 | V14: =PRODUCT(U14/W14) -> 61.8 % | W14: =SUM(W4:W13) -> 111.625 | X14: YHTEENSÄ | AA14: =SUM(AA4:AA13) -> 0 | AB14: =SUM(AB4:AB13) -> 0 | AC14: =SUM(AC4:AC13) -> 0 | AD14: =SUM(AD4:AD13) -> 0 | AE14: =SUM(AE4:AE13) -> 0 | AF14: 0.0 % | AG14: =SUM(AG4:AG13) -> 0 | AM14: =SUM(AM4:AM13) -> 0 | AN14: =SUM(AN4:AN13) -> 0 | AO14: =SUM(AO4:AO13) -> 0 | AP14: =SUM(AP4:AP13) -> 0 | AQ14: =SUM(AQ4:AQ13) -> 0 | AR14: 0.0 % | AS14: =SUM(AS4:AS13) -> 0
B16: KAIKKI OTTELUT | E16: OTT | F16: KUN | G16: LÖI | H16: TOI | I16: KL | J16: KL-% | L16: ka/L | M16: ka/T | N16: ka/l+t | O16: ka/kl | R16: Seurat | T16: ViVe = Vimpelin Veto (1934), kasvattajaseura
B17: SUPERPESIS | E17: 284 | F17: 3 | G17: 26 | H17: 185 | I17: 847 | J17: 55.5 % | K17: =PRODUCT(I17/J17) -> 1526.126126 | L17: =PRODUCT((F17+G17)/E17) -> 0.10 | M17: =PRODUCT(H17/E17) -> 0.65 | N17: =PRODUCT((F17+G17+H17)/E17) -> 0.75 | O17: =PRODUCT(I17/E17) -> 2.98 | T17: SMJ = Seinäjoen Maila-Jussit (1932)
B18: YKKÖSPESIS | E18: =PRODUCT(E14+Q14) -> 154 | F18: =PRODUCT(F14+R14) -> 5 | G18: =PRODUCT(G14+S14) -> 46 | H18: =PRODUCT(H14+T14) -> 152 | I18: =PRODUCT(I14+U14) -> 638 | J18: =PRODUCT(I18/K18) -> 63.4 % | K18: =PRODUCT(K14+W14) -> 1006.625 | L18: =PRODUCT((F18+G18)/E18) -> 0.33 | M18: =PRODUCT(H18/E18) -> 0.99 | N18: =PRODUCT((F18+G18+H18)/E18) -> 1.32 | O18: =PRODUCT(I18/E18) -> 4.14 | T18: AA = Alajärven Ankkurit (1944)
B19: SUOMENSARJA | E19: =PRODUCT(AA14+AM14) -> 0 | F19: =PRODUCT(AB14+AN14) -> 0 | G19: =PRODUCT(AC14+AO14) -> 0 | H19: =PRODUCT(AD14+AP14) -> 0 | I19: =PRODUCT(AE14+AQ14) -> 0 | J19: 0.0 % | K19: =PRODUCT(AG14+AS14) -> 0 | L19: 0.00 | M19: 0.00 | N19: 0.00 | O19: 0.00 | T19: JymyJussit = Seinäjoen JymyJussit (2012)
B20: YHTEENSÄ | E20: =SUM(E17:E19) -> 438 | F20: =SUM(F17:F19) -> 8 | G20: 72 | H20: 337 | I20: 1485 | J20: =PRODUCT(I20/K20) -> 58.6 % | K20: =SUM(K17:K19) -> 2532.751126 | L20: =PRODUCT((F20+G20)/E20) -> 0.18 | M20: =PRODUCT(H20/E20) -> 0.77 | N20: =PRODUCT((F20+G20+H20)/E20) -> 0.95 | O20: =PRODUCT(I20/E20) -> 3.39

Sheet Kärkilyönnit
B1: KÄRKILYÖNNIT RUNKOSARJASSA | V1: VUOSITTAISET SIJOITUKSET TOP - 30
G2: 0 > 1 | J2: 1 > 2 | M2: 2 > 3 | P2: 3 > k | S2: Yhteensä
B3: Vuosi | C3: Sija | D3: Seura | E3: OTT | F3: KL | G3: YHT | H3: % | I3: KL | J3: YHT | K3: % | L3: KL | M3: YHT | N3: % | O3: KL | P3: YHT | Q3: % | R3: KL | S3: YHT | T3: % | V3: Vuosi | W3: Sija | X3: Seura | Y3: 0 > 1 | Z3: 1 > 2 | AA3: 2 > 3 | AB3: 3 > k | AC3: KL
B4: 2004 | C4: 11. | D4: ViVe | E4: 28 | F4: 8 | G4: 17 | H4: 47.1 % | I4: 13 | J4: 38 | K4: 34.2 % | L4: 9 | M4: 17 | N4: 52.9 % | O4: 5 | P4: 8 | Q4: 62.5 % | R4: 35 | S4: 80 | T4: 43.8 % | V4: 2004 | W4: 11. | X4: ViVe
B5: 2005 | C5: 11. | D5: ViVe | E5: 12 | F5: 7 | G5: 19 | H5: 36.8 % | I5: 17 | J5: 34 | K5: 50.0 % | L5: 9 | M5: 13 | N5: 69.2 % | O5: 0 | P5: 2 | Q5: 0.0 % | R5: 33 | S5: 68 | T5: 48.5 % | V5: 2005 | W5: 11. | X5: ViVe
B6: 2006 | C6: 9. | D6: ViVe | E6: 27 | F6: 68 | G6: 115 | H6: 59.1 % | I6: 24 | J6: 41 | K6: 58.5 % | L6: 4 | M6: 7 | N6: 57.1 % | O6: 2 | P6: 6 | Q6: 33.3 % | R6: 98 | S6: 169 | T6: 58.0 % | V6: 2006 | W6: 9. | X6: ViVe | Y6: 12.
B7: 2007 | C7: 7. | D7: ViVe | E7: 26 | F7: 62 | G7: 100 | H7: 62.0 % | I7: 2 | J7: 5 | K7: 40.0 % | L7: 2 | M7: 5 | N7: 40.0 % | O7: 4 | P7: 9 | Q7: 44.4 % | R7: 70 | S7: 119 | T7: 58.8 % | V7: 2007 | W7: 7. | X7: ViVe | Y7: 15.
B8: 2008 | C8: 10. | D8: SMJ | E8: 23 | F8: 91 | G8: 149 | H8: 61.1 % | I8: 3 | J8: 3 | K8: 100.0 % | L8: 1 | M8: 2 | N8: 50.0 % | O8: 1 | P8: 4 | Q8: 25.0 % | R8: 96 | S8: 158 | T8: 60.8 % | V8: 2008 | W8: 10. | X8: SMJ | Y8: 7.
B9: 2009 | C9: 3. | D9: ViVe | E9: 15 | F9: 8 | G9: 9 | H9: 88.9 % | I9: 13 | J9: 19 | K9: 68.4 % | L9: 4 | M9: 5 | N9: 80.0 % | O9: 0 | P9: 4 | Q9: 0.0 % | R9: 25 | S9: 37 | T9: 67.6 % | V9: 2009 | W9: 3. | X9: ViVe
B10: 2010 | V10: 2010
B11: 2011 | V11: 2011
B12: 2012 | C12: 12. | D12: AA | E12: 25 | F12: 8 | G12: 18 | H12: 44.4 % | I12: 80 | J12: 127 | K12: 63.0 % | L12: 29 | M12: 45 | N12: 64.4 % | O12: 2 | P12: 5 | Q12: 40.0 % | R12: 119 | S12: 195 | T12: 61.0 % | V12: 2012 | W12: 12. | X12: AA | Z12: 9. | AC12: 24.
B13: 2013 | C13: 7. | D13: JymyJussit | E13: 25 | F13: 23 | G13: 60 | H13: 38.3 % | I13: 48 | J13: 81 | K13: 59.3 % | L13: 6 | M13: 9 | N13: 66.7 % | O13: 2 | P13: 6 | Q13: 33.3 % | R13: 79 | S13: 156 | T13: 50.6 % | V13: 2013 | W13: 7. | X13: JymyJussit | Z13: 19.
B14: 2014 | C14: 11. | D14: AA | E14: 30 | F14: 22 | G14: 55 | H14: 40.0 % | I14: 69 | J14: 123 | K14: 56.1 % | L14: 16 | M14: 29 | N14: 55.2 % | O14: 0 | P14: 0 | Q14: 0.0 % | R14: 107 | S14: 207 | T14: 51.7 % | V14: 2014 | W14: 11. | X14: AA | Z14: 11.
B15: Yhteensä | E15: =SUM(E4:E14) -> 211 | F15: =SUM(F4:F14) -> 297 | G15: =SUM(G4:G14) -> 542 | H15: =PRODUCT(F15/G15) -> 54.8 % | I15: =SUM(I4:I14) -> 269 | J15: =SUM(J4:J14) -> 471 | K15: =PRODUCT(I15/J15) -> 57.1 % | L15: =SUM(L4:L14) -> 80 | M15: =SUM(M4:M14) -> 132 | N15: =PRODUCT(L15/M15) -> 60.6 % | O15: =SUM(O4:O14) -> 16 | P15: =SUM(P4:P14) -> 44 | Q15: =PRODUCT(O15/P15) -> 36.4 % | R15: =SUM(R4:R14) -> 662 | S15: =SUM(S4:S14) -> 1189 | T15: =PRODUCT(R15/S15) -> 55.7 %
B17: KÄRKILYÖNNIT YLEMMISSÄ PUDOTUSPELEISSÄ | V17: VUOSITTAISET SIJOITUKSET TOP - 30
G18: 0 > 1 | J18: 1 > 2 | M18: 2 > 3 | P18: 3 > k | S18: Yhteensä
B19: Vuosi | C19: Sija | D19: Seura | E19: OTT | F19: KL | G19: YHT | H19: % | I19: KL | J19: YHT | K19: % | L19: KL | M19: YHT | N19: % | O19: KL | P19: YHT | Q19: % | R19: KL | S19: YHT | T19: % | V19: Vuosi | W19: Sija | X19: Seura | Y19: 0 > 1 | Z19: 1 > 2 | AA19: 2 > 3 | AB19: 3 > k | AC19: KL
B20: 2004 | C20: 9. | D20: ViVe | V20: 2004 | W20: 9. | X20: ViVe
B21: 2005 | C21: 10. | D21: ViVe | V21: 2005 | W21: 10. | X21: ViVe
B22: 2006 | C22: 10. | D22: ViVe | V22: 2006 | W22: 10. | X22: ViVe
B23: 2007 | C23: 5. | D23: ViVe | E23: 9 | F23: 1 | G23: 1 | H23: 100.0 % | I23: 3 | J23: 11 | K23: 27.3 % | L23: 1 | M23: 3 | N23: 33.3 % | O23: 2 | P23: 5 | Q23: 40.0 % | R23: 7 | S23: 20 | T23: 35.0 % | V23: 2007 | W23: 5. | X23: ViVe
B24: 2008 | C24: 10. | D24: SMJ | V24: 2008 | W24: 10. | X24: SMJ
B25: 2009 | C25: 3. | D25: ViVe | E25: 11 | F25: 9 | G25: 11 | H25: 81.8 % | I25: 2 | J25: 6 | K25: 33.3 % | L25: 2 | M25: 5 | N25: 40.0 % | O25: 1 | P25: 4 | Q25: 25.0 % | R25: 14 | S25: 26 | T25: 53.8 % | V25: 2009 | W25: 3. | X25: ViVe | Y25: 27.
B26: 2010 | V26: 2010
B27: 2011 | V27: 2011
B28: 2012 | C28: 12. | D28: AA | V28: 2012 | W28: 12. | X28: AA
B29: 2013 | C29: 7. | D29: JymyJussit | E29: 3 | F29: 3 | G29: 8 | H29: 37.5 % | I29: 1 | J29: 10 | K29: 10.0 % | L29: 0 | M29: 0 | N29: 0.0 % | O29: 0 | P29: 1 | Q29: 0.0 % | R29: 4 | S29: 19 | T29: 21.1 % | V29: 2013 | W29: 7. | X29: JymyJussit
B30: 2014 | C30: 10. | D30: AA | V30: 2014 | W30: 10. | X30: AA
B31: Yhteensä | E31: =SUM(E18:E30) -> 23 | F31: =SUM(F20:F30) -> 13 | G31: =SUM(G20:G30) -> 20 | H31: =PRODUCT(F31/G31) -> 65.0 % | I31: =SUM(I20:I30) -> 6 | J31: =SUM(J20:J30) -> 27 | K31: =PRODUCT(I31/J31) -> 22.2 % | L31: =SUM(L20:L30) -> 3 | M31: =SUM(M20:M30) -> 8 | N31: =PRODUCT(L31/M31) -> 37.5 % | O31: =SUM(O20:O30) -> 3 | P31: =SUM(P20:P30) -> 10 | Q31: =PRODUCT(O31/P31) -> 30.0 % | R31: =SUM(R20:R30) -> 25 | S31: =SUM(S20:S30) -> 65 | T31: =PRODUCT(R31/S31) -> 38.5 %
B33: KÄRKILYÖNNIT
G34: 0 > 1 | J34: 1 > 2 | M34: 2 > 3 | P34: 3 > k | S34: Yhteensä
E35: OTT | F35: KL | G35: YHT | H35: % | I35: KL | J35: YHT | K35: % | L35: KL | M35: YHT | N35: % | O35: KL | P35: YHT | Q35: % | R35: KL | S35: YHT | T35: %
B36: RUNKOSARJA | E36: =PRODUCT(E15) -> 211 | F36: =PRODUCT(F15) -> 297 | G36: =PRODUCT(G15) -> 542 | H36: =PRODUCT(H15) -> 54.8 % | I36: =PRODUCT(I15) -> 269 | J36: =PRODUCT(J15) -> 471 | K36: =PRODUCT(K15) -> 57.1 % | L36: =PRODUCT(L15) -> 80 | M36: =PRODUCT(M15) -> 132 | N36: =PRODUCT(N15) -> 60.6 % | O36: =PRODUCT(O15) -> 16 | P36: =PRODUCT(P15) -> 44 | Q36: =PRODUCT(Q15) -> 36.4 % | R36: =PRODUCT(R15) -> 662 | S36: =PRODUCT(S15) -> 1189 | T36: =PRODUCT(T15) -> 55.7 %
B37: PLAY OFF | E37: =PRODUCT(E31) -> 23 | F37: =PRODUCT(F31) -> 13 | G37: 20 | H37: 65.0 % | I37: 6 | J37: 27 | K37: 22.2 % | L37: 3 | M37: 8 | N37: 37.5 % | O37: 3 | P37: 10 | Q37: 30.0 % | R37: 25 | S37: 65 | T37: 38.5 %
